[Event "Titled Tuesday Blitz October 25 Late 2022"]
[White "Suder, Jakub"]
[Black "Faizrakhmanov, Ramil"]
[WhiteFideId "1195310"]
[BlackFideId "24103209"]
[WhiteElo "2174"]
[BlackElo "2421"]
[Result "1-0"]
[Round "02"]
[TimeControl "180+1"]
[Date "2022.10.26"]
[WhiteClock "0:00:14"]
[BlackClock "0:00:40"]

1. d4 {[%clk 0:03:00]}  Nf6 {[%clk 0:02:59]} 2. c4 {[%clk 0:03:00]}  e6 {[%clk 0:02:59]} 3. Nc3 {[%clk 0:03:00]}  Bb4 {[%clk 0:02:59]} 4. Qb3 {[%clk 0:02:59]}  c5 {[%clk 0:02:53]} 5. dxc5 {[%clk 0:02:58]}  Nc6 {[%clk 0:02:52]} 6. Nf3 {[%clk 0:02:57]}  Ne4 {[%clk 0:02:47]} 7. Bd2 {[%clk 0:02:56]}  Nxd2 {[%clk 0:02:44]} 8. Nxd2 {[%clk 0:02:57]}  Bxc5 {[%clk 0:02:44]} 9. e3 {[%clk 0:02:57]}  O-O {[%clk 0:02:42]} 10. Rd1 {[%clk 0:02:52]}  a6 {[%clk 0:02:34]} 11. Nde4 {[%clk 0:02:52]}  Be7 {[%clk 0:02:34]} 12. c5 {[%clk 0:02:42]}  Rb8 {[%clk 0:02:32]} 13. Be2 {[%clk 0:02:33]}  b6 {[%clk 0:02:27]} 14. cxb6 {[%clk 0:02:32]}  d5 {[%clk 0:02:25]} 15. Na4 {[%clk 0:02:23]}  Bd7 {[%clk 0:02:17]} 16. Nec5 {[%clk 0:02:11]}  Bxc5 {[%clk 0:02:15]} 17. Nxc5 {[%clk 0:02:12]}  Rxb6 {[%clk 0:02:14]} 18. Qc3 {[%clk 0:02:06]}  Nb8 {[%clk 0:02:05]} 19. O-O {[%clk 0:02:02]}  Bb5 {[%clk 0:02:04]} 20. Bxb5 {[%clk 0:01:59]}  Rxb5 {[%clk 0:02:02]} 21. Rc1 {[%clk 0:01:56]}  Qb6 {[%clk 0:01:45]} 22. Nd3 {[%clk 0:01:38]}  Nd7 {[%clk 0:01:39]} 23. b4 {[%clk 0:01:29]}  Qb8 {[%clk 0:01:21]} 24. Qc6 {[%clk 0:01:16]}  Nb6 {[%clk 0:01:19]} 25. a4 {[%clk 0:00:53]}  Rc8 {[%clk 0:01:16]} 26. axb5 {[%clk 0:00:52]}  Rxc6 {[%clk 0:01:15]} 27. bxc6 {[%clk 0:00:51]}  Na8 {[%clk 0:01:13]} 28. h3 {[%clk 0:00:39]}  h5 {[%clk 0:01:09]} 29. Nc5 {[%clk 0:00:27]}  Nc7 {[%clk 0:01:09]} 30. Ra1 {[%clk 0:00:26]}  Qb5 {[%clk 0:01:05]} 31. Rfc1 {[%clk 0:00:23]}  e5 {[%clk 0:00:53]} 32. Nxa6 {[%clk 0:00:23]}  Nxa6 {[%clk 0:00:53]} 33. Rxa6 {[%clk 0:00:22]}  Qxa6 {[%clk 0:00:53]} 34. c7 {[%clk 0:00:18]}  Qc8 {[%clk 0:00:52]} 35. b5 {[%clk 0:00:18]}  d4 {[%clk 0:00:42]} 36. exd4 {[%clk 0:00:14]}  exd4 {[%clk 0:00:43]} 37. b6 {[%clk 0:00:15]}  Kh7 {[%clk 0:00:42]} 38. b7 {[%clk 0:00:14]}  Qxb7 {[%clk 0:00:41]} 39. c8=Q {[%clk 0:00:15]}  Qd5 {[%clk 0:00:40]} 40. Qc2+ {[%clk 0:00:14]}  d3 {[%clk 0:00:40]} 41. Qd2 {[%clk 0:00:14]} 1-0


[Site "https://www.chess.com"]

[Event "Titled Tuesday Blitz October 25 Late 2022"]
[White "Sztokbant, Bernardo Vainzoff"]
[Black "Sailer, Mike"]
[WhiteFideId "2115956"]
[BlackFideId "2012901"]
[WhiteElo "2171"]
[BlackElo "2109"]
[Result "1-0"]
[Round "02"]
[TimeControl "180+1"]
[Date "2022.10.26"]
[WhiteClock "0:00:10"]
[BlackClock "0:00:15"]

1. Nf3 {[%clk 0:03:00]}  d5 {[%clk 0:02:59]} 2. d4 {[%clk 0:03:00]}  Nf6 {[%clk 0:02:59]} 3. c4 {[%clk 0:03:00]}  Bf5 {[%clk 0:02:58]} 4. Nc3 {[%clk 0:03:00]}  e6 {[%clk 0:02:58]} 5. Qb3 {[%clk 0:02:59]}  Nc6 {[%clk 0:02:57]} 6. cxd5 {[%clk 0:02:57]}  exd5 {[%clk 0:02:55]} 7. Bg5 {[%clk 0:02:56]}  Bb4 {[%clk 0:02:46]} 8. e3 {[%clk 0:02:54]}  O-O {[%clk 0:02:34]} 9. Be2 {[%clk 0:02:50]}  h6 {[%clk 0:02:15]} 10. Bxf6 {[%clk 0:02:49]}  Qxf6 {[%clk 0:02:15]} 11. O-O {[%clk 0:02:42]}  Bxc3 {[%clk 0:02:14]} 12. bxc3 {[%clk 0:02:43]}  Qd6 {[%clk 0:01:58]} 13. Qxb7 {[%clk 0:02:32]}  Rab8 {[%clk 0:01:50]} 14. Qa6 {[%clk 0:02:32]}  Rb6 {[%clk 0:01:38]} 15. Qa4 {[%clk 0:02:31]}  Rfb8 {[%clk 0:01:38]} 16. h3 {[%clk 0:02:29]}  Rb2 {[%clk 0:01:34]} 17. Rfe1 {[%clk 0:02:26]}  Bc2 {[%clk 0:01:15]} 18. Qa6 {[%clk 0:02:23]}  R2b6 {[%clk 0:01:11]} 19. Rac1 {[%clk 0:02:10]}  Rxa6 {[%clk 0:01:09]} 20. Bxa6 {[%clk 0:02:11]}  Be4 {[%clk 0:01:05]} 21. Nd2 {[%clk 0:02:11]}  Nxd4 {[%clk 0:00:58]} 22. cxd4 {[%clk 0:02:09]}  Qxa6 {[%clk 0:00:58]} 23. Rxc7 {[%clk 0:02:06]}  Qxa2 {[%clk 0:00:58]} 24. Nxe4 {[%clk 0:02:06]}  dxe4 {[%clk 0:00:59]} 25. Rcc1 {[%clk 0:01:39]}  a5 {[%clk 0:00:52]} 26. Ra1 {[%clk 0:01:35]}  Qd5 {[%clk 0:00:52]} 27. Rec1 {[%clk 0:01:36]}  Ra8 {[%clk 0:00:41]} 28. Rc5 {[%clk 0:01:35]}  Qd8 {[%clk 0:00:41]} 29. Ra4 {[%clk 0:01:34]}  Qb6 {[%clk 0:00:39]} 30. g4 {[%clk 0:01:18]}  g6 {[%clk 0:00:39]} 31. Kg2 {[%clk 0:01:17]}  Kg7 {[%clk 0:00:40]} 32. Re5 {[%clk 0:01:13]}  Ra7 {[%clk 0:00:37]} 33. d5 {[%clk 0:01:13]}  Qd6 {[%clk 0:00:31]} 34. Rexe4 {[%clk 0:01:10]}  Qxd5 {[%clk 0:00:31]} 35. Kg3 {[%clk 0:01:09]}  Qd6+ {[%clk 0:00:30]} 36. Kg2 {[%clk 0:01:08]}  Qc6 {[%clk 0:00:30]} 37. Kg3 {[%clk 0:01:07]}  Qd5 {[%clk 0:00:27]} 38. h4 {[%clk 0:01:03]}  h5 {[%clk 0:00:27]} 39. Rad4 {[%clk 0:00:51]}  Qb3 {[%clk 0:00:24]} 40. gxh5 {[%clk 0:00:49]}  gxh5 {[%clk 0:00:25]} 41. Ra4 {[%clk 0:00:40]}  Qb1 {[%clk 0:00:22]} 42. Kg2 {[%clk 0:00:34]}  Qe1 {[%clk 0:00:20]} 43. Re5 {[%clk 0:00:30]}  Qd1 {[%clk 0:00:19]} 44. Rg5+ {[%clk 0:00:23]}  Kf6 {[%clk 0:00:19]} 45. Rd4 {[%clk 0:00:17]}  a4 {[%clk 0:00:17]} 46. Rxd1 {[%clk 0:00:17]}  a3 {[%clk 0:00:16]} 47. Rxh5 {[%clk 0:00:17]}  a2 {[%clk 0:00:16]} 48. Ra1 {[%clk 0:00:16]}  Kg6 {[%clk 0:00:16]} 49. Rg5+ {[%clk 0:00:15]}  Kf6 {[%clk 0:00:16]} 50. Kg3 {[%clk 0:00:16]}  Ra4 {[%clk 0:00:16]} 51. Rg4 {[%clk 0:00:16]}  Ra3 {[%clk 0:00:15]} 52. Rf4+ {[%clk 0:00:16]}  Kg6 {[%clk 0:00:16]} 53. Kf3 {[%clk 0:00:16]}  f5 {[%clk 0:00:17]} 54. Ke2 {[%clk 0:00:15]}  Ra4 {[%clk 0:00:14]} 55. Rxa4 {[%clk 0:00:14]}  f4 {[%clk 0:00:14]} 56. Rxf4 {[%clk 0:00:13]}  Kh5 {[%clk 0:00:15]} 57. Rxa2 {[%clk 0:00:12]}  Kg6 {[%clk 0:00:15]} 58. Ra5 {[%clk 0:00:10]}  Kh6 {[%clk 0:00:15]} 59. Rf6+ {[%clk 0:00:10]}  Kg7 {[%clk 0:00:15]} 60. Rb6 {[%clk 0:00:10]} 1-0


[Site "https://www.chess.com"]

[Event "Titled Tuesday Blitz October 25 Late 2022"]
[White "Tan, Ralph"]
[Black "Fajdetic, Hrvoje"]
[WhiteFideId "30966590"]
[BlackFideId "14501945"]
[WhiteElo "2059"]
[BlackElo "2172"]
[Result "0-1"]
[Round "02"]
[TimeControl "180+1"]
[Date "2022.10.26"]
[WhiteClock "0:00:10"]
[BlackClock "0:00:23"]

1. Nf3 {[%clk 0:03:00]}  d6 {[%clk 0:02:56]} 2. d4 {[%clk 0:03:00]}  Nd7 {[%clk 0:02:56]} 3. g3 {[%clk 0:03:00]}  e5 {[%clk 0:02:56]} 4. Bg2 {[%clk 0:03:00]}  Be7 {[%clk 0:02:55]} 5. O-O {[%clk 0:03:00]}  Ngf6 {[%clk 0:02:55]} 6. c4 {[%clk 0:03:00]}  c6 {[%clk 0:02:55]} 7. Nc3 {[%clk 0:03:00]}  Qc7 {[%clk 0:02:50]} 8. b3 {[%clk 0:03:00]}  Nf8 {[%clk 0:02:48]} 9. Bb2 {[%clk 0:03:00]}  h5 {[%clk 0:02:45]} 10. h4 {[%clk 0:02:59]}  Ng4 {[%clk 0:02:34]} 11. Rc1 {[%clk 0:02:57]}  g5 {[%clk 0:02:14]} 12. c5 {[%clk 0:02:47]}  gxh4 {[%clk 0:02:11]} 13. cxd6 {[%clk 0:02:42]}  Qxd6 {[%clk 0:02:05]} 14. Ne4 {[%clk 0:02:18]}  Qg6 {[%clk 0:02:02]} 15. Nxe5 {[%clk 0:02:13]}  Nxe5 {[%clk 0:02:00]} 16. dxe5 {[%clk 0:02:13]}  hxg3 {[%clk 0:01:56]} 17. fxg3 {[%clk 0:02:10]}  h4 {[%clk 0:01:41]} 18. Nf6+ {[%clk 0:01:45]}  Bxf6 {[%clk 0:01:37]} 19. Rxf6 {[%clk 0:01:45]}  Qxg3 {[%clk 0:01:34]} 20. Rc3 {[%clk 0:01:14]}  Qg5 {[%clk 0:01:20]} 21. Rd3 {[%clk 0:01:04]}  Be6 {[%clk 0:01:18]} 22. Qc1 {[%clk 0:00:36]}  Qxc1+ {[%clk 0:01:01]} 23. Bxc1 {[%clk 0:00:37]}  Nd7 {[%clk 0:00:59]} 24. Rf1 {[%clk 0:00:28]}  h3 {[%clk 0:00:56]} 25. Be4 {[%clk 0:00:24]}  Nxe5 {[%clk 0:00:47]} 26. Rg3 {[%clk 0:00:19]}  O-O-O {[%clk 0:00:42]} 27. Bb2 {[%clk 0:00:18]}  Rh5 {[%clk 0:00:42]} 28. Kh2 {[%clk 0:00:15]}  Rd2 {[%clk 0:00:41]} 29. Bxe5 {[%clk 0:00:13]}  Rxe2+ {[%clk 0:00:39]} 30. Kh1 {[%clk 0:00:13]}  Rxe4 {[%clk 0:00:38]} 31. Bf6 {[%clk 0:00:12]}  h2 {[%clk 0:00:27]} 32. Rg8+ {[%clk 0:00:12]}  Kc7 {[%clk 0:00:24]} 33. Bd8+ {[%clk 0:00:12]}  Kd7 {[%clk 0:00:23]} 34. Rd1+ {[%clk 0:00:11]}  Bd5 {[%clk 0:00:24]} 35. Ba5 {[%clk 0:00:10]}  Re1# {[%clk 0:00:23]} 0-1


[Site "https://www.chess.com"]

[Event "Titled Tuesday Blitz October 25 Late 2022"]
[White "Tomiello, Lucas Costamilan"]
[Black "Gonzalez, Francisco Silva"]
[WhiteFideId "22701940"]
[BlackFideId "1512285"]
[WhiteElo "2085"]
[BlackElo "2159"]
[Result "1-0"]
[Round "02"]
[TimeControl "180+1"]
[Date "2022.10.26"]
[WhiteClock "0:00:12"]
[BlackClock "0:00:17"]

1. e4 {[%clk 0:03:00]}  e5 {[%clk 0:02:58]} 2. Nf3 {[%clk 0:03:00]}  Nc6 {[%clk 0:02:58]} 3. Bb5 {[%clk 0:03:01]}  a6 {[%clk 0:02:57]} 4. Ba4 {[%clk 0:02:59]}  Nf6 {[%clk 0:02:55]} 5. O-O {[%clk 0:02:58]}  b5 {[%clk 0:02:54]} 6. Bb3 {[%clk 0:02:58]}  Bc5 {[%clk 0:02:54]} 7. a4 {[%clk 0:02:54]}  Bb7 {[%clk 0:02:54]} 8. d3 {[%clk 0:02:51]}  d6 {[%clk 0:02:54]} 9. axb5 {[%clk 0:02:49]}  axb5 {[%clk 0:02:53]} 10. Rxa8 {[%clk 0:02:50]}  Bxa8 {[%clk 0:02:53]} 11. Bg5 {[%clk 0:02:41]}  h6 {[%clk 0:02:52]} 12. Bh4 {[%clk 0:02:40]}  g5 {[%clk 0:02:52]} 13. Bg3 {[%clk 0:02:41]}  Bb7 {[%clk 0:02:49]} 14. c3 {[%clk 0:02:38]}  Bb6 {[%clk 0:02:47]} 15. Re1 {[%clk 0:02:34]}  Bc8 {[%clk 0:02:45]} 16. d4 {[%clk 0:02:14]}  Bg4 {[%clk 0:02:42]} 17. dxe5 {[%clk 0:02:10]}  Bxf3 {[%clk 0:02:41]} 18. Qxf3 {[%clk 0:02:06]}  Nxe5 {[%clk 0:02:41]} 19. Qf5 {[%clk 0:02:03]}  Nfd7 {[%clk 0:02:32]} 20. Nd2 {[%clk 0:01:50]}  O-O {[%clk 0:02:21]} 21. Nf3 {[%clk 0:01:36]}  Nxf3+ {[%clk 0:02:18]} 22. Qxf3 {[%clk 0:01:37]}  Qe7 {[%clk 0:02:15]} 23. Qh5 {[%clk 0:01:27]}  Kg7 {[%clk 0:02:14]} 24. h4 {[%clk 0:01:26]}  Nf6 {[%clk 0:02:13]} 25. Qf3 {[%clk 0:01:26]}  Nd7 {[%clk 0:02:02]} 26. hxg5 {[%clk 0:01:22]}  hxg5 {[%clk 0:02:02]} 27. Qf5 {[%clk 0:01:20]}  Ne5 {[%clk 0:02:00]} 28. Rd1 {[%clk 0:01:14]}  Qf6 {[%clk 0:01:57]} 29. Qxf6+ {[%clk 0:01:12]}  Kxf6 {[%clk 0:01:57]} 30. Rd5 {[%clk 0:01:07]}  b4 {[%clk 0:01:55]} 31. c4 {[%clk 0:00:57]}  Ng4 {[%clk 0:01:06]} 32. Bd1 {[%clk 0:00:45]}  Ne5 {[%clk 0:00:34]} 33. c5 {[%clk 0:00:42]}  Ba7 {[%clk 0:00:29]} 34. cxd6 {[%clk 0:00:40]}  Nc4 {[%clk 0:00:28]} 35. dxc7 {[%clk 0:00:36]}  Nb6 {[%clk 0:00:27]} 36. Rd8 {[%clk 0:00:33]}  Kg7 {[%clk 0:00:20]} 37. Be2 {[%clk 0:00:31]}  Nc8 {[%clk 0:00:18]} 38. Ba6 {[%clk 0:00:30]}  Bb6 {[%clk 0:00:18]} 39. Rxf8 {[%clk 0:00:29]}  Bxc7 {[%clk 0:00:19]} 40. Rxc8 {[%clk 0:00:28]}  Be5 {[%clk 0:00:18]} 41. Bxe5+ {[%clk 0:00:28]}  Kg6 {[%clk 0:00:19]} 42. Rc6+ {[%clk 0:00:28]}  f6 {[%clk 0:00:19]} 43. Rxf6+ {[%clk 0:00:27]}  Kg7 {[%clk 0:00:19]} 44. Bc4 {[%clk 0:00:24]}  b3 {[%clk 0:00:19]} 45. Rf7+ {[%clk 0:00:25]}  Kg6 {[%clk 0:00:19]} 46. Rg7+ {[%clk 0:00:25]}  Kh6 {[%clk 0:00:19]} 47. Rg8 {[%clk 0:00:20]}  g4 {[%clk 0:00:19]} 48. Bf7 {[%clk 0:00:17]}  g3 {[%clk 0:00:17]} 49. Bf4+ {[%clk 0:00:16]}  Kh7 {[%clk 0:00:16]} 50. Rxg3 {[%clk 0:00:14]}  Kh8 {[%clk 0:00:15]} 51. Kf1 {[%clk 0:00:14]}  Kh7 {[%clk 0:00:15]} 52. Ke2 {[%clk 0:00:13]}  Kh8 {[%clk 0:00:16]} 53. Kf3 {[%clk 0:00:13]}  Kh7 {[%clk 0:00:16]} 54. Bxb3 {[%clk 0:00:13]}  Kh8 {[%clk 0:00:16]} 55. Bc4 {[%clk 0:00:12]}  Kh7 {[%clk 0:00:16]} 56. Bg8+ {[%clk 0:00:12]}  Kh8 {[%clk 0:00:17]} 57. Be5# {[%clk 0:00:12]} 1-0


[Site "https://www.chess.com"]

[Event "Titled Tuesday Blitz October 25 Late 2022"]
[White "Vlassov, Nikolai"]
[Black "Mirzoeva, Elmira"]
[WhiteFideId "4103360"]
[BlackFideId "4127951"]
[WhiteElo "2324"]
[BlackElo "2161"]
[Result "0-1"]
[Round "02"]
[TimeControl "180+1"]
[Date "2022.10.26"]
[WhiteClock "0:00:08"]
[BlackClock "0:00:38"]

1. e4 {[%clk 0:03:00]}  d6 {[%clk 0:02:59]} 2. f4 {[%clk 0:03:00]}  c5 {[%clk 0:02:57]} 3. Nc3 {[%clk 0:02:52]}  Nc6 {[%clk 0:02:57]} 4. Nf3 {[%clk 0:02:51]}  g6 {[%clk 0:02:57]} 5. d3 {[%clk 0:02:47]}  Bg7 {[%clk 0:02:57]} 6. h3 {[%clk 0:02:47]}  e5 {[%clk 0:02:57]} 7. g4 {[%clk 0:02:43]}  Nge7 {[%clk 0:02:56]} 8. f5 {[%clk 0:02:43]}  d5 {[%clk 0:02:53]} 9. Bg5 {[%clk 0:02:39]}  f6 {[%clk 0:02:50]} 10. Bd2 {[%clk 0:02:33]}  Nd4 {[%clk 0:02:36]} 11. Bg2 {[%clk 0:02:31]}  h5 {[%clk 0:02:19]} 12. O-O {[%clk 0:02:27]}  hxg4 {[%clk 0:02:18]} 13. hxg4 {[%clk 0:02:27]}  dxe4 {[%clk 0:02:12]} 14. dxe4 {[%clk 0:02:25]}  Bd7 {[%clk 0:02:09]} 15. Be3 {[%clk 0:02:17]}  Qb6 {[%clk 0:02:06]} 16. Rb1 {[%clk 0:02:14]}  O-O {[%clk 0:01:57]} 17. Rf2 {[%clk 0:02:10]}  Rad8 {[%clk 0:01:55]} 18. Qf1 {[%clk 0:02:08]}  gxf5 {[%clk 0:01:47]} 19. Qc4+ {[%clk 0:02:02]}  Be6 {[%clk 0:01:46]} 20. Qf1 {[%clk 0:01:51]}  f4 {[%clk 0:01:31]} 21. Bd2 {[%clk 0:01:37]}  Bxg4 {[%clk 0:01:29]} 22. Na4 {[%clk 0:01:24]}  Qb5 {[%clk 0:01:25]} 23. Qxb5 {[%clk 0:01:18]}  Nxb5 {[%clk 0:01:25]} 24. Nxc5 {[%clk 0:01:18]}  b6 {[%clk 0:01:22]} 25. Nd3 {[%clk 0:01:16]}  Nc6 {[%clk 0:01:16]} 26. Nh2 {[%clk 0:01:12]}  Be6 {[%clk 0:01:15]} 27. b3 {[%clk 0:01:05]}  Nbd4 {[%clk 0:01:12]} 28. Bc3 {[%clk 0:01:01]}  Kf7 {[%clk 0:01:05]} 29. Kf1 {[%clk 0:00:56]}  Rh8 {[%clk 0:01:05]} 30. Nf3 {[%clk 0:00:55]}  Bh3 {[%clk 0:00:57]} 31. Bxd4 {[%clk 0:00:39]}  Nxd4 {[%clk 0:00:56]} 32. Nxd4 {[%clk 0:00:38]}  Rxd4 {[%clk 0:00:56]} 33. Ke2 {[%clk 0:00:28]}  Bxg2 {[%clk 0:00:54]} 34. Rxg2 {[%clk 0:00:28]}  Bf8 {[%clk 0:00:52]} 35. Nf2 {[%clk 0:00:26]}  Bc5 {[%clk 0:00:48]} 36. c3 {[%clk 0:00:21]}  Rd6 {[%clk 0:00:46]} 37. Nd3 {[%clk 0:00:20]}  Be3 {[%clk 0:00:45]} 38. Rd1 {[%clk 0:00:17]}  Rhd8 {[%clk 0:00:44]} 39. Rh2 {[%clk 0:00:16]}  Bc5 {[%clk 0:00:42]} 40. Rhh1 {[%clk 0:00:15]}  f3+ {[%clk 0:00:42]} 41. Kxf3 {[%clk 0:00:15]}  Rxd3+ {[%clk 0:00:42]} 42. Rxd3 {[%clk 0:00:15]}  Rxd3+ {[%clk 0:00:43]} 43. Kg4 {[%clk 0:00:16]}  Re3 {[%clk 0:00:42]} 44. Rh7+ {[%clk 0:00:12]}  Ke6 {[%clk 0:00:40]} 45. Rxa7 {[%clk 0:00:13]}  Rxe4+ {[%clk 0:00:41]} 46. Kg3 {[%clk 0:00:14]}  Rf4 {[%clk 0:00:40]} 47. b4 {[%clk 0:00:14]}  Bf2+ {[%clk 0:00:39]} 48. Kg2 {[%clk 0:00:14]}  Be1 {[%clk 0:00:39]} 49. Rb7 {[%clk 0:00:14]}  Bxc3 {[%clk 0:00:38]} 50. Rxb6+ {[%clk 0:00:14]}  Kd5 {[%clk 0:00:39]} 51. b5 {[%clk 0:00:14]}  Ra4 {[%clk 0:00:38]} 52. Rxf6 {[%clk 0:00:13]}  e4 {[%clk 0:00:38]} 53. Rf5+ {[%clk 0:00:11]}  Kd4 {[%clk 0:00:39]} 54. b6 {[%clk 0:00:11]}  Rxa2+ {[%clk 0:00:39]} 55. Kg3 {[%clk 0:00:11]}  Rb2 {[%clk 0:00:39]} 56. Rf6 {[%clk 0:00:10]}  Kd3 {[%clk 0:00:38]} 57. Rd6+ {[%clk 0:00:10]}  Bd4 {[%clk 0:00:39]} 58. Kf4 {[%clk 0:00:08]}  Rxb6 {[%clk 0:00:38]} 0-1


[Site "https://www.chess.com"]

[Event "Titled Tuesday Blitz October 25 Late 2022"]
[White "Vovk, Orest"]
[Black "Miszler, Levente"]
[WhiteFideId "14113490"]
[BlackFideId "763276"]
[WhiteElo "2215"]
[BlackElo "2176"]
[Result "1-0"]
[Round "02"]
[TimeControl "180+1"]
[Date "2022.10.26"]
[WhiteClock "0:01:36"]
[BlackClock "0:00:10"]

1. h4 {[%clk 0:02:55]}  d5 {[%clk 0:02:56]} 2. h5 {[%clk 0:02:55]}  Nc6 {[%clk 0:02:52]} 3. e4 {[%clk 0:02:54]}  dxe4 {[%clk 0:02:51]} 4. Nc3 {[%clk 0:02:54]}  Nf6 {[%clk 0:02:50]} 5. Rh4 {[%clk 0:02:53]}  e5 {[%clk 0:02:40]} 6. Nxe4 {[%clk 0:02:45]}  Bf5 {[%clk 0:02:40]} 7. Ng3 {[%clk 0:02:42]}  Be6 {[%clk 0:02:38]} 8. Bb5 {[%clk 0:02:42]}  Qd5 {[%clk 0:02:29]} 9. Qe2 {[%clk 0:02:35]}  O-O-O {[%clk 0:02:21]} 10. Bxc6 {[%clk 0:02:34]}  Qxc6 {[%clk 0:02:22]} 11. Nf3 {[%clk 0:02:33]}  Bd6 {[%clk 0:02:16]} 12. d3 {[%clk 0:02:30]}  Rhe8 {[%clk 0:02:15]} 13. Ng5 {[%clk 0:02:26]}  Qxg2 {[%clk 0:02:06]} 14. Nxe6 {[%clk 0:02:25]}  Rxe6 {[%clk 0:02:06]} 15. Be3 {[%clk 0:02:24]}  Qg1+ {[%clk 0:01:53]} 16. Nf1 {[%clk 0:02:20]}  e4 {[%clk 0:01:41]} 17. d4 {[%clk 0:02:03]}  Qg2 {[%clk 0:01:30]} 18. O-O-O {[%clk 0:02:01]}  Qf3 {[%clk 0:01:29]} 19. Qxf3 {[%clk 0:01:59]}  exf3 {[%clk 0:01:30]} 20. Rh3 {[%clk 0:01:59]}  Re4 {[%clk 0:01:05]} 21. Rxf3 {[%clk 0:01:54]}  Nxh5 {[%clk 0:00:52]} 22. Rxf7 {[%clk 0:01:53]}  Re7 {[%clk 0:00:48]} 23. Rf3 {[%clk 0:01:49]}  Nf6 {[%clk 0:00:38]} 24. c4 {[%clk 0:01:48]}  c6 {[%clk 0:00:35]} 25. Ng3 {[%clk 0:01:44]}  Bc7 {[%clk 0:00:30]} 26. Nf5 {[%clk 0:01:44]}  Red7 {[%clk 0:00:30]} 27. Nxg7 {[%clk 0:01:41]}  Be5 {[%clk 0:00:19]} 28. Ne6 {[%clk 0:01:37]}  Re8 {[%clk 0:00:14]} 29. dxe5 {[%clk 0:01:36]}  Rxd1+ {[%clk 0:00:13]} 30. Kxd1 {[%clk 0:01:36]}  Rxe6 {[%clk 0:00:10]} 31. exf6 {[%clk 0:01:36]} 1-0


[Site "https://www.chess.com"]

[Event "Titled Tuesday Blitz October 25 Late 2022"]
[White "Wieczorek, Zbigniew"]
[Black "Krastev, Alexander"]
[WhiteFideId "1102001"]
[BlackFideId "12989983"]
[WhiteElo "2337"]
[BlackElo "2528"]
[Result "1-0"]
[Round "02"]
[TimeControl "180+1"]
[Date "2022.10.26"]
[WhiteClock "0:00:04"]
[BlackClock "0:00:02"]

1. Nf3 {[%clk 0:02:59]}  g6 {[%clk 0:02:58]} 2. c4 {[%clk 0:02:58]}  Bg7 {[%clk 0:02:58]} 3. Nc3 {[%clk 0:02:58]}  b6 {[%clk 0:02:59]} 4. e4 {[%clk 0:02:56]}  c5 {[%clk 0:02:58]} 5. d4 {[%clk 0:02:52]}  cxd4 {[%clk 0:02:58]} 6. Nxd4 {[%clk 0:02:52]}  Bb7 {[%clk 0:02:59]} 7. Be2 {[%clk 0:02:51]}  Nc6 {[%clk 0:02:59]} 8. Be3 {[%clk 0:02:51]}  Nf6 {[%clk 0:03:00]} 9. f3 {[%clk 0:02:51]}  O-O {[%clk 0:02:59]} 10. O-O {[%clk 0:02:51]}  d6 {[%clk 0:02:58]} 11. Rc1 {[%clk 0:02:50]}  Qd7 {[%clk 0:02:52]} 12. Qd2 {[%clk 0:02:43]}  Rfc8 {[%clk 0:02:52]} 13. Rfd1 {[%clk 0:02:42]}  Qe8 {[%clk 0:02:44]} 14. b3 {[%clk 0:02:39]}  Nxd4 {[%clk 0:02:38]} 15. Bxd4 {[%clk 0:02:39]}  Qf8 {[%clk 0:02:37]} 16. Qe3 {[%clk 0:02:32]}  Bh6 {[%clk 0:02:33]} 17. Qf2 {[%clk 0:02:24]}  Bxc1 {[%clk 0:02:22]} 18. Rxc1 {[%clk 0:02:24]}  Nd7 {[%clk 0:02:15]} 19. Nd5 {[%clk 0:02:02]}  e5 {[%clk 0:02:10]} 20. Be3 {[%clk 0:01:56]}  Bxd5 {[%clk 0:02:10]} 21. exd5 {[%clk 0:01:55]}  Qd8 {[%clk 0:01:50]} 22. g4 {[%clk 0:01:50]}  a6 {[%clk 0:01:37]} 23. Rf1 {[%clk 0:01:31]}  Rab8 {[%clk 0:01:23]} 24. f4 {[%clk 0:01:25]}  b5 {[%clk 0:01:22]} 25. f5 {[%clk 0:01:22]}  Qe7 {[%clk 0:01:08]} 26. f6 {[%clk 0:01:10]}  Qd8 {[%clk 0:00:58]} 27. Qh4 {[%clk 0:00:51]}  bxc4 {[%clk 0:00:13]} 28. Bxc4 {[%clk 0:00:41]}  a5 {[%clk 0:00:14]} 29. Rf3 {[%clk 0:00:25]}  e4 {[%clk 0:00:13]} 30. Rh3 {[%clk 0:00:24]}  h5 {[%clk 0:00:04]} 31. Bd4 {[%clk 0:00:12]}  Rxc4 {[%clk 0:00:04]} 32. bxc4 {[%clk 0:00:11]}  Rb1+ {[%clk 0:00:05]} 33. Kf2 {[%clk 0:00:11]}  Rd1 {[%clk 0:00:03]} 34. Bc3 {[%clk 0:00:04]}  Qb6+ {[%clk 0:00:02]} 35. Ke2 {[%clk 0:00:04]} 1-0


[Site "https://www.chess.com"]

[Event "Titled Tuesday Blitz October 25 Late 2022"]
[White "Yano, William Jorge Froes"]
[Black "Aggelis, Nikolaos"]
[WhiteFideId "2112949"]
[BlackFideId "4213220"]
[WhiteElo "2122"]
[BlackElo "2187"]
[Result "1-0"]
[Round "02"]
[TimeControl "180+1"]
[Date "2022.10.26"]
[WhiteClock "0:00:15"]
[BlackClock "0:00:05"]

1. e4 {[%clk 0:03:00]}  c6 {[%clk 0:02:57]} 2. Nc3 {[%clk 0:03:00]}  d5 {[%clk 0:02:56]} 3. Qf3 {[%clk 0:03:01]}  dxe4 {[%clk 0:02:54]} 4. Nxe4 {[%clk 0:03:02]}  Nd7 {[%clk 0:02:50]} 5. d4 {[%clk 0:03:01]}  Ngf6 {[%clk 0:02:49]} 6. Bc4 {[%clk 0:03:00]}  e6 {[%clk 0:02:44]} 7. Bg5 {[%clk 0:03:00]}  Be7 {[%clk 0:02:43]} 8. Bxf6 {[%clk 0:03:00]}  Nxf6 {[%clk 0:02:43]} 9. O-O-O {[%clk 0:03:01]}  Qa5 {[%clk 0:02:40]} 10. Kb1 {[%clk 0:02:55]}  O-O {[%clk 0:02:29]} 11. Ne2 {[%clk 0:02:50]}  Qf5 {[%clk 0:02:25]} 12. Nxf6+ {[%clk 0:02:24]}  Bxf6 {[%clk 0:02:24]} 13. Qe3 {[%clk 0:02:24]}  b5 {[%clk 0:02:20]} 14. Bd3 {[%clk 0:02:16]}  Qd5 {[%clk 0:02:20]} 15. g4 {[%clk 0:02:00]}  a5 {[%clk 0:02:12]} 16. Nf4 {[%clk 0:01:49]}  Qd6 {[%clk 0:02:10]} 17. Nh5 {[%clk 0:01:48]}  Be7 {[%clk 0:01:51]} 18. Rhg1 {[%clk 0:01:32]}  a4 {[%clk 0:01:43]} 19. Rg3 {[%clk 0:01:23]}  b4 {[%clk 0:01:37]} 20. Rh3 {[%clk 0:01:18]}  h6 {[%clk 0:01:33]} 21. f4 {[%clk 0:01:10]}  b3 {[%clk 0:01:31]} 22. a3 {[%clk 0:01:10]}  bxc2+ {[%clk 0:01:30]} 23. Bxc2 {[%clk 0:01:11]}  Rb8 {[%clk 0:01:12]} 24. g5 {[%clk 0:01:04]}  g6 {[%clk 0:00:39]} 25. Nf6+ {[%clk 0:01:01]}  Bxf6 {[%clk 0:00:39]} 26. gxf6 {[%clk 0:01:01]}  Qd8 {[%clk 0:00:18]} 27. Qe5 {[%clk 0:00:51]}  Rb5 {[%clk 0:00:17]} 28. d5 {[%clk 0:00:27]}  Rxd5 {[%clk 0:00:16]} 29. Rxd5 {[%clk 0:00:27]}  Qxd5 {[%clk 0:00:16]} 30. Bxa4 {[%clk 0:00:20]}  Qh1+ {[%clk 0:00:14]} 31. Ka2 {[%clk 0:00:20]}  Qd5+ {[%clk 0:00:13]} 32. Bb3 {[%clk 0:00:20]}  Qxe5 {[%clk 0:00:09]} 33. fxe5 {[%clk 0:00:21]}  Rd8 {[%clk 0:00:08]} 34. Rxh6 {[%clk 0:00:21]}  Rd2 {[%clk 0:00:08]} 35. Rh3 {[%clk 0:00:15]}  Re2 {[%clk 0:00:08]} 36. Rd3 {[%clk 0:00:15]}  Ba6 {[%clk 0:00:08]} 37. Rd8+ {[%clk 0:00:15]}  Kh7 {[%clk 0:00:08]} 38. Rf8 {[%clk 0:00:15]}  Rxe5 {[%clk 0:00:07]} 39. Rxf7+ {[%clk 0:00:15]}  Kg8 {[%clk 0:00:08]} 40. Rg7+ {[%clk 0:00:15]}  Kf8 {[%clk 0:00:08]} 41. Rxg6 {[%clk 0:00:15]}  Bd3 {[%clk 0:00:06]} 42. Rh6 {[%clk 0:00:15]}  Rf5 {[%clk 0:00:06]} 43. Bxe6 {[%clk 0:00:14]}  Rf2 {[%clk 0:00:05]} 44. Rh8# {[%clk 0:00:15]} 1-0


[Site "https://www.chess.com"]